fUSD/lending_fUSD_20260418
["ID","MTS","AMOUNT","RATE_DAILY","PERIOD"]
[420736538,1776519038363,-500.0,0.00011132,2]
[420736539,1776519038372,-500.0,0.00011132,2]
[420736540,1776519038382,-500.0,0.00011132,2]
[420736541,1776519038391,-500.0,0.00011132,2]
[420736542,1776519038401,-500.0,0.00011132,2]
[420736543,1776519038411,-500.0,0.00011132,2]
[420736544,1776519038420,-508.85087809,0.00011132,2]
[420736545,1776519038430,-500.0,0.00011132,2]
[420736546,1776519038441,-500.0,0.00011132,2]
[420736547,1776519038450,-500.0,0.00011132,2]
[420736548,1776519038460,-500.0,0.00011132,2]
[420736549,1776519038470,-500.0,0.00011132,2]
[420736550,1776519038479,-500.0,0.00011132,2]
[420736551,1776519038489,-500.0,0.00011132,2]
[420736552,1776519038499,-500.0,0.00011132,2]
[420736553,1776519038508,-500.0,0.00011132,2]
[420736554,1776519038518,-500.0,0.00011132,2]
[420736555,1776519038527,-500.0,0.00011132,2]
[420736556,1776519038539,-500.0,0.00011132,2]
[420736557,1776519038548,-500.0,0.00011132,2]
[420736558,1776519038560,-500.0,0.00011132,2]
[420736559,1776519038569,-500.0,0.00011132,2]
[420736560,1776519038579,-500.0,0.00011132,2]
[420736561,1776519038589,-500.0,0.00011132,2]
[420736562,1776519038598,-500.0,0.00011132,2]
[420736563,1776519038608,-500.0,0.00011132,2]
[420736564,1776519038618,-452.94384821,0.00011132,2]
[420736565,1776519038628,-499.99999999,0.00011132,2]
[420736566,1776519038638,-500.0,0.00011132,2]
[420736567,1776519038648,-500.0,0.00011132,2]
[420736568,1776519038658,-500.0,0.00011132,2]
[420736569,1776519038668,-500.0,0.00011132,2]
[420736570,1776519038678,-500.0,0.00011132,2]
[420736571,1776519038688,-405.63972753,0.00011132,2]
[420736572,1776519038698,-500.0,0.00011132,2]
[420736573,1776519038708,-316.96226414,0.00011132,2]
[420736574,1776519038718,-500.0,0.00011132,2]
[420736575,1776519038729,-500.0,0.00011132,2]
[420736576,1776519038739,-500.0,0.00011132,2]
[420736577,1776519038751,-300.0,0.00011132,2]
[420736578,1776519038762,-250.0,0.00011133,2]
[420736579,1776519038771,-270.0,0.00011133,5]
[420736580,1776519038781,-1393725.30043102,0.00011133,2]
[420736581,1776519040320,-3240.61969509,0.00011133,2]
[420736596,1776519047343,-3528.0,0.00010486,2]
[420736597,1776519047352,-103034.07987389,0.00011133,2]
[420736598,1776519047362,-349.55632459,0.00011173,2]
[420736599,1776519047371,-2000.0,0.00011174,2]
[420736600,1776519047380,-260.0,0.000112,2]
[420736601,1776519047390,-155.0,0.00011232,2]
[420736602,1776519047399,-300.0,0.00011232,2]
[420736603,1776519047408,-157.95926701,0.00011233,2]
[420736604,1776519047417,-150.0,0.00011233,2]
[420736605,1776519047426,-150.0,0.00011233,2]
[420736606,1776519047435,-201.99075699,0.00011233,2]
[420736607,1776519047445,-500.0,0.00011233,2]
[420736608,1776519047455,-500.0,0.00011233,2]
[420736609,1776519047464,-500.0,0.00011233,2]
[420736610,1776519047473,-500.0,0.00011233,2]
[420736611,1776519047483,-500.0,0.00011233,2]
[420736612,1776519047492,-500.0,0.00011233,2]
[420736613,1776519047502,-500.0,0.00011233,2]
[420736614,1776519047512,-500.0,0.00011233,2]
[420736615,1776519047522,-500.0,0.00011233,2]
[420736616,1776519047532,-500.0,0.00011233,2]
[420736617,1776519047542,-372.01730652,0.00011233,2]
[420736618,1776519047552,-151.0,0.00011233,2]
[420736619,1776519047562,-151.0,0.00011233,2]
[420736620,1776519047571,-150.0,0.00011233,2]
[420736621,1776519047581,-500.0,0.00011233,2]
[420736622,1776519047591,-500.0,0.00011233,2]
[420736623,1776519047600,-500.0,0.00011233,2]
[420736624,1776519047610,-500.0,0.00011233,2]
[420736625,1776519047620,-500.0,0.00011233,2]
[420736626,1776519047630,-500.0,0.00011233,2]
[420736627,1776519047639,-500.0,0.00011233,2]
[420736628,1776519047649,-500.0,0.00011233,2]
[420736629,1776519047658,-500.0,0.00011233,2]
[420736630,1776519047667,-500.0,0.00011233,2]
[420736631,1776519047677,-500.0,0.00011233,2]
[420736632,1776519047687,-500.0,0.00011233,2]
[420736633,1776519047696,-500.0,0.00011233,2]
[420736634,1776519047708,-500.0,0.00011233,2]
[420736635,1776519047719,-319.63699528,0.00011233,2]
[420736636,1776519047728,-500.0,0.00011233,2]
[420736637,1776519047738,-500.0,0.00011233,2]
[420736638,1776519047748,-500.0,0.00011233,2]
[420736639,1776519047759,-500.0,0.00011233,2]
[420736640,1776519047769,-500.0,0.00011233,2]
[420736641,1776519047778,-500.0,0.00011233,2]
[420736642,1776519047788,-500.0,0.00011233,2]
[420736643,1776519047798,-500.0,0.00011233,2]
[420736644,1776519047808,-500.0,0.00011233,2]
[420736645,1776519047818,-500.0,0.00011233,2]
[420736646,1776519047827,-652.0,0.00011233,2]
[420736647,1776519047836,-500.0,0.00011233,2]
[420736648,1776519047848,-652.0,0.00011233,2]
[420736649,1776519047859,-500.0,0.00011233,2]
[420736650,1776519047868,-652.0,0.00011233,2]
[420736651,1776519047880,-500.0,0.00011233,2]
[420736652,1776519047890,-500.0,0.00011233,2]
[420736653,1776519047900,-371.92860347,0.00011233,2]
[420736654,1776519047912,-150.0,0.00011233,2]
[420736655,1776519047921,-500.0,0.00011233,2]
[420736656,1776519047931,-500.0,0.00011233,2]
[420736657,1776519047940,-500.0,0.00011233,2]
[420736658,1776519047949,-500.0,0.00011233,2]
[420736659,1776519047958,-500.0,0.00011233,2]
[420736660,1776519047967,-500.0,0.00011233,2]
[420736661,1776519047976,-500.0,0.00011233,2]
[420736662,1776519047986,-500.0,0.00011233,2]
[420736663,1776519047995,-500.0,0.00011233,2]
[420736664,1776519048004,-500.0,0.00011233,2]
[420736665,1776519048013,-312.30688331,0.00011233,2]
[420736666,1776519048023,-150.0,0.00011233,2]
[420736667,1776519048032,-500.0,0.00011233,2]
[420736668,1776519048042,-500.0,0.00011233,2]
[420736669,1776519048052,-500.0,0.00011233,2]
[420736670,1776519048061,-500.0,0.00011233,2]
[420736671,1776519048070,-500.0,0.00011233,2]
[420736672,1776519048080,-500.0,0.00011233,2]
[420736673,1776519048089,-500.0,0.00011233,2]
[420736674,1776519048098,-500.0,0.00011233,2]
[420736675,1776519048108,-500.0,0.00011233,2]
[420736676,1776519048117,-500.0,0.00011233,2]
[420736677,1776519048127,-500.0,0.00011233,2]
[420736678,1776519048136,-500.0,0.00011233,2]
[420736679,1776519048145,-231.97231229,0.00011233,2]
[420736680,1776519048154,-500.0,0.00011233,2]
[420736681,1776519048163,-500.0,0.00011233,2]
[420736682,1776519048173,-437.06057488,0.00011233,2]
[420736683,1776519048182,-150.0,0.00011233,2]
[420736684,1776519048191,-652.0,0.00011233,2]
[420736685,1776519048201,-652.0,0.00011233,2]
[420736686,1776519048210,-652.0,0.00011233,2]
[420736687,1776519048219,-652.0,0.00011233,2]
[420736688,1776519048230,-652.0,0.00011233,2]
[420736689,1776519048239,-652.0,0.00011233,2]
[420736690,1776519048248,-652.0,0.00011233,2]
[420736691,1776519048258,-652.0,0.00011233,2]
[420736692,1776519048267,-652.0,0.00011233,2]
[420736693,1776519048276,-652.0,0.00011233,2]
[420736694,1776519048286,-652.0,0.00011233,2]
[420736695,1776519048295,-652.0,0.00011233,2]
[420736696,1776519048304,-652.0,0.00011233,2]
[420736697,1776519048314,-652.0,0.00011233,2]
[420736698,1776519048323,-652.0,0.00011233,2]
[420736699,1776519048332,-652.0,0.00011233,2]
[420736700,1776519048341,-652.0,0.00011233,2]
[420736701,1776519048351,-652.0,0.00011233,2]
[420736702,1776519048360,-652.0,0.00011233,2]
[420736703,1776519048369,-652.0,0.00011233,2]
[420736704,1776519048379,-660.30955828,0.00011233,2]
[420736705,1776519048388,-500.0,0.00011233,2]
[420736706,1776519048398,-155.0,0.00011233,3]
[420736707,1776519048407,-151.0,0.00011233,3]
[420736708,1776519048416,-500.0,0.00011233,2]
[420736709,1776519048425,-500.0,0.00011233,2]
[420736710,1776519048434,-500.0,0.00011233,2]
[420736711,1776519048443,-500.0,0.00011233,2]
[420736712,1776519048453,-500.0,0.00011233,2]
[420736713,1776519048463,-500.0,0.00011233,2]
[420736714,1776519048472,-500.0,0.00011233,2]
[420736715,1776519048482,-500.0,0.00011233,2]
[420736716,1776519048492,-500.0,0.00011233,2]
[420736717,1776519048503,-500.0,0.00011233,2]
[420736718,1776519048513,-500.0,0.00011233,2]
[420736719,1776519048523,-500.0,0.00011233,2]
[420736720,1776519048534,-500.0,0.00011233,2]
[420736721,1776519048543,-573.02271931,0.00011233,2]
[420736722,1776519048553,-500.0,0.00011233,2]
[420736723,1776519048564,-500.0,0.00011233,2]
[420736724,1776519048575,-500.0,0.00011233,2]
[420736725,1776519048586,-320.746121,0.00011233,2]
[420736726,1776519048596,-500.0,0.00011233,2]
[420736727,1776519048605,-500.0,0.00011233,2]
[420736728,1776519048614,-500.0,0.00011233,2]
[420736729,1776519048624,-447.0,0.00011233,2]
[420736730,1776519048633,-500.0,0.00011233,2]
[420736731,1776519048642,-447.0,0.00011233,2]
[420736732,1776519048651,-447.0,0.00011233,2]
[420736733,1776519048660,-500.0,0.00011233,2]
[420736734,1776519048670,-447.0,0.00011233,2]
[420736735,1776519048679,-636.36614715,0.00011233,2]
[420736736,1776519048688,-447.0,0.00011233,2]
[420736737,1776519048698,-447.0,0.00011233,2]
[420736738,1776519048707,-447.0,0.00011233,2]
[420736739,1776519048717,-447.0,0.00011233,2]
[420736740,1776519048727,-447.0,0.00011233,2]
[420736741,1776519048736,-447.0,0.00011233,2]
[420736742,1776519048746,-447.0,0.00011233,2]
[420736743,1776519048755,-447.0,0.00011233,2]
[420736744,1776519048764,-447.0,0.00011233,2]
[420736745,1776519048774,-447.0,0.00011233,2]
[420736746,1776519048783,-447.0,0.00011233,2]
[420736747,1776519048793,-447.0,0.00011233,2]
[420736748,1776519048802,-447.0,0.00011233,2]
[420736749,1776519048811,-447.0,0.00011233,2]
[420736750,1776519048821,-447.0,0.00011233,2]
[420736751,1776519048830,-447.0,0.00011233,2]
[420736752,1776519048839,-447.0,0.00011233,2]
[420736753,1776519048849,-447.0,0.00011233,2]
[420736754,1776519048858,-300.0,0.0001128,2]
[420736755,1776519048867,-952.53,0.00011281,2]
[420736756,1776519048876,-26635.78,0.00011281,2]
[420736757,1776519048887,-2074.07,0.00011281,2]
[420736758,1776519048897,-4917.1,0.00011281,2]
[420736759,1776519048906,-299.99,0.00011281,2]
[420736760,1776519048916,-150.99,0.00011281,2]
[420736761,1776519048925,-9999.99,0.00011281,2]
[420736762,1776519048935,-1482.98,0.00011281,2]
[420736763,1776519048944,-9999.99,0.00011281,2]
[420736764,1776519048955,-246.07,0.00011308,2]
[420736765,1776519048964,-652.68,0.00011507,2]
[420736766,1776519048974,-2000.0,0.00011523,2]
[420736767,1776519048983,-200.0,0.00011523,2]
[420736768,1776519048992,-700.0,0.0001158,2]
[420736769,1776519049002,-246.11,0.00011582,2]
[420736770,1776519049011,-200.0,0.00011629,2]
[420736771,1776519049020,-446.75645434,0.00011629,2]
[420736772,1776519049030,-187.78006525,0.00011629,2]
[420736773,1776519049039,-6360.2567285,0.00011773,2]
[420736774,1776519049048,-8700.3030621,0.00011773,2]
[420736775,1776519049058,-200.0,0.000118,2]
[420736776,1776519049067,-307.0,0.000118,2]
[420736777,1776519049077,-1000.0,0.000118,2]
[420736778,1776519049086,-200.0,0.00011879,3]
[420736779,1776519049095,-250.0,0.00011879,2]
[420736780,1776519049104,-250.0,0.00011879,2]
[420736781,1776519049114,-250.0,0.00011879,2]
[420736782,1776519049123,-1846.44178365,0.000119,2]
[420736783,1776519049133,-1000.0,0.000119,2]
[420736784,1776519049142,-1900.0,0.000119,4]
[420736785,1776519049152,-167.4403,0.0001199,2]
[420736786,1776519049161,-167.4403,0.0001199,2]
[420736787,1776519049171,-166.8631,0.0001199,2]
[420736788,1776519049180,-300.0,0.00011999,2]
[420736789,1776519049190,-25453.37621382,0.00011999,2]
[420736790,1776519049200,-2000.0,0.00011999,2]
[420736791,1776519049210,-339.0,0.00012,5]
[420736792,1776519049219,-27823.71239808,0.00012,2]
[420736793,1776519049238,-3103.0,0.00012,2]
[420736824,1776520232259,-496.2484482,8.709e-05,2]
[420736825,1776520232469,-2095.8315518,8.709e-05,2]
[420736826,1776520232479,-178.633,8.709e-05,2]
[420736827,1776520232490,-2500.0,8.786e-05,2]
[420736828,1776520232500,-464.7731,8.786e-05,2]
[420736829,1776520232511,-500.0,8.863e-05,2]
[420736830,1776520232521,-1086.1218991,8.885e-05,3]
[420736831,1776520232531,-250.0,9.58e-05,2]
[420736832,1776520232540,-274.35941046,9.708e-05,2]
[420736833,1776520232549,-260.0,9.863e-05,2]
[420736834,1776520232559,-500.0,9.89e-05,2]
[420736835,1776520232568,-193.45796499,0.0001,2]
[420736836,1776520232577,-262.78827148,0.0001,2]
[420736837,1776520232587,-331.76209554,0.0001,2]
[420736838,1776520232596,-698.81685437,0.0001,2]
[420736839,1776520232605,-672.82612889,0.0001,2]
[420736840,1776520232623,-614.42228413,0.0001,2]
[420736841,1776520232634,-299.99,0.0001,2]
[420736842,1776520232644,-9999.99,0.0001,2]
[420736843,1776520232653,-999.99,0.0001,2]
[420736844,1776520232666,-7054.49,0.0001,2]
[420736845,1776520232675,-150.99,0.0001,2]
[420736846,1776520232684,-8930.0,0.0001,2]
[420736847,1776520232694,-151.0,0.0001,2]
[420736849,1776520232703,-151.0,0.0001,2]
[420736850,1776520232713,-151.0,0.0001,2]
[420736851,1776520232723,-151.0,0.0001,2]
[420736852,1776520232733,-151.0,0.0001,2]
[420736853,1776520232743,-191.85872661,0.0001,2]
[420736854,1776520232752,-500.0,0.0001,2]
[420736855,1776520232763,-261.25737812,0.0001,2]
[420736862,1776520240571,-238.74262188,0.0001,2]
[420736863,1776520240580,-309.89448512,0.0001,2]
[420736883,1776520246385,-190.10551488,0.0001,2]
[420736884,1776520246395,-500.0,0.0001,2]
[420736885,1776520246404,-500.0,0.0001,2]
[420736886,1776520246414,-500.0,0.0001,2]
[420736887,1776520246423,-500.0,0.0001,2]
[420736888,1776520246433,-500.0,0.0001,2]
[420736889,1776520246442,-500.0,0.0001,2]
[420736890,1776520246451,-160.0,0.00010258,2]
[420736891,1776520246461,-1000.0,0.00010433,2]
[420736892,1776520246471,-622.0,0.00010713,2]
[420736893,1776520246481,-1349.0,0.00010713,2]
[420736895,1776520246491,-1264.0,0.00010713,2]
[420736896,1776520246501,-2473.0,0.00010713,2]
[420736897,1776520246511,-416.0,0.00010713,2]
[420736898,1776520246522,-500.0,0.00011,2]
[420736899,1776520246532,-500.0,0.00011,2]
[420736900,1776520246543,-500.0,0.00011,2]
[420736901,1776520246554,-500.0,0.00011,2]
[420736902,1776520246565,-500.0,0.00011,2]
[420736903,1776520246575,-500.0,0.00011,2]
[420736904,1776520246584,-500.0,0.00011,2]
[420736905,1776520246594,-500.0,0.00011,2]
[420736906,1776520246606,-500.0,0.00011,2]
[420736907,1776520246617,-500.0,0.00011,2]
[420736908,1776520246627,-500.0,0.00011,2]
[420736909,1776520246637,-500.0,0.00011,2]
[420736910,1776520246647,-500.0,0.00011,2]
[420736911,1776520246657,-322.96,0.00011,2]
[420736912,1776520246666,-500.0,0.00011,2]
[420736913,1776520246676,-500.0,0.00011,2]
[420736914,1776520246686,-241.27,0.00011,2]
[420736915,1776520246696,-1000.0,0.00011,2]
[420736916,1776520246705,-578.20924308,0.00011032,2]
[420736917,1776520246715,-695.39793187,0.00011032,2]
[420736918,1776520246725,-200.0,0.00011032,2]
[420736919,1776520246734,-174.61919141,0.00011032,2]
[420736920,1776520246744,-26384.27469282,0.00011099,2]
[420736921,1776520246754,-5684.53343904,0.00011099,2]
[420736922,1776520246763,-5849.99964467,0.0001111,2]
[420736923,1776520246785,-6306.15795404,0.0001111,2]
[420736924,1776520246801,-694.10268527,0.0001111,2]
[420736925,1776520246813,-2710.07817859,0.0001111,2]
[420736926,1776520246824,-1588.671315,0.0001111,2]
[420736928,1776520246836,-8356.42827535,0.0001111,2]
[420736941,1776520247547,-878.83663986,0.0001111,2]
[420736942,1776520247559,-1296.52413945,0.00011121,2]
[420739764,1776521431540,-544.144535,8.611e-05,2]
[420739765,1776521431571,-2146.592465,8.611e-05,2]
[420739766,1776521431581,-198.208,8.611e-05,2]
[420739767,1776521431591,-6554.04335211,8.686e-05,2]
[420739768,1776521431603,-3464.11972123,8.686e-05,2]
[420739769,1776521431730,-558.74,8.686e-05,2]
[420739770,1776521431742,-18292.80740229,8.686e-05,2]
[420739778,1776521437681,-1086.4395005,8.686e-05,2]
[420739779,1776521437734,-6114.84232598,8.686e-05,2]
[420739780,1776521437746,-750.97674804,8.686e-05,2]
[420739781,1776521438045,-540.01220046,8.686e-05,2]
[420739782,1776521438058,-2289.76487314,8.686e-05,2]
[420739960,1776521439843,-1677.94350832,8.686e-05,2]
[420740284,1776521447602,-755.79727345,8.686e-05,2]
[420740285,1776521447614,-689.13518423,8.686e-05,2]
[420740287,1776521447634,-19784.18357828,8.686e-05,2]
[420741724,1776521963422,-500.0,0.00021918,120]
[420741725,1776521963452,-500.0,0.00022164,120]
[420741726,1776521963481,-500.0,0.00022411,120]
[420741727,1776521963512,-500.0,0.00022658,120]
[420741728,1776521963543,-500.0,0.00022904,120]
[420741729,1776521963574,-500.0,0.00023151,120]
[420741730,1776521963602,-500.0,0.00023397,120]
[420741731,1776521963630,-500.0,0.00023644,120]
[420741732,1776521963658,-500.0,0.0002389,120]
[420741733,1776521963687,-500.0,0.00024137,120]
[420741734,1776521963716,-500.0,0.00024384,120]
[420741735,1776521963745,-500.0,0.0002463,120]
[420741736,1776521963774,-500.0,0.00024877,120]
[420741737,1776521963806,-500.0,0.00025123,120]
[420741738,1776521963834,-500.0,0.00025211,120]
[420741739,1776521963863,-500.0,0.0002537,120]
[420741740,1776521963891,-500.0,0.00025616,120]
[420741741,1776521963919,-500.0,0.00025863,120]
[420741742,1776521963947,-500.0,0.0002611,120]
[420741743,1776521963975,-500.0,0.00026181,120]
[420741744,1776521964003,-500.0,0.00026356,120]
[420741745,1776521964031,-150.0,0.00026553,120]
[420741746,1776521964059,-500.0,0.00026603,120]
[420741747,1776521964087,-500.0,0.00026849,120]
[420741748,1776521964118,-5116.42284443,0.00027,120]
[420741749,1776521964146,-500.0,0.00027096,120]
[420741750,1776521964174,-500.0,0.00027151,120]
[420741751,1776521964201,-500.0,0.00027342,120]
[420741752,1776521964230,-1029.39968039,0.00027397,120]
[420741753,1776521964261,-500.0,0.00027589,120]
[420741754,1776521964292,-500.0,0.00027836,120]
[420741755,1776521964321,-500.0,0.00028082,120]
[420741756,1776521964351,-500.0,0.00028122,120]
[420741757,1776521964380,-500.0,0.00028329,120]
[420741758,1776521964409,-150.0,0.0002855,120]
[420741759,1776521965017,-500.0,0.00028575,120]
[420741760,1776521965046,-500.0,0.00028822,120]
[420741761,1776521965076,-500.0,0.00029092,120]
[420741762,1776521965104,-898.37,0.0002926,120]
[420741763,1776521965133,-1003.4,0.0002926,120]
[420741764,1776521965161,-276.72496692,0.0002926,120]
[420741765,1776521965189,-500.0,0.00029799,120]
[420741766,1776521965215,-500.0,0.00029799,120]
[420741767,1776521965243,-500.0,0.00029799,120]
[420741768,1776521965273,-500.0,0.00029799,120]
[420741769,1776521965304,-500.0,0.00029799,120]
[420741770,1776521965340,-264.20939292,0.00029799,120]
[420741771,1776521965369,-500.0,0.00029799,120]
[420741772,1776521965398,-500.0,0.00029799,120]
[420741773,1776521965427,-500.0,0.00029799,120]
[420741774,1776521965454,-500.0,0.00029799,120]
[420741775,1776521965483,-500.0,0.00029799,120]
[420741776,1776521965510,-500.0,0.00029799,120]
[420741777,1776521965539,-382.12172293,0.00029799,120]
[420741778,1776521965567,-447.85280955,0.00029799,120]
[420741779,1776521965597,-898.37,0.00029799,120]
[420741780,1776521965627,-898.37,0.00029799,120]
[420741781,1776521965659,-898.37,0.00029799,120]
[420741782,1776521965690,-898.37,0.00029799,120]
[420741783,1776521965721,-898.37,0.00029799,120]
[420741784,1776521965751,-898.37,0.00029799,120]
[420741785,1776521965781,-898.37,0.00029799,120]
[420741786,1776521965811,-898.37,0.00029799,120]
[420741787,1776521965846,-898.37,0.00029799,120]
[420741788,1776521965878,-898.37,0.00029799,120]
[420741789,1776521965908,-898.37,0.00029799,120]
[420741790,1776521965939,-898.37,0.00029799,120]
[420741791,1776521965971,-898.37,0.00029799,120]
[420741792,1776521966002,-898.37,0.00029799,120]
[420741793,1776521966032,-898.46476664,0.00029799,120]
[420741794,1776521966065,-1003.4,0.00029799,120]
[420741795,1776521966093,-1003.4,0.00029799,120]
[420741796,1776521966125,-1003.4,0.00029799,120]
[420741797,1776521966155,-1003.4,0.00029799,120]
[420741798,1776521966183,-1003.4,0.00029799,120]
[420741799,1776521966216,-1003.4,0.00029799,120]
[420741800,1776521966248,-1003.4,0.00029799,120]
[420741801,1776521966279,-1003.4,0.00029799,120]
[420741802,1776521966309,-1003.4,0.00029799,120]
[420741803,1776521966344,-1003.4,0.00029799,120]
[420741804,1776521966375,-1003.4,0.00029799,120]
[420741805,1776521966405,-1003.4,0.00029799,120]
[420741806,1776521966434,-1003.4,0.00029799,120]
[420741807,1776521966464,-1003.4,0.00029799,120]
[420741808,1776521966493,-1003.41119479,0.00029799,120]
[420741809,1776521966525,-893.0,0.0003,120]
[420741810,1776521966556,-500.0,0.00030062,120]
[420741811,1776521966587,-150.0,0.00030292,120]
[420741812,1776521966618,-500.0,0.00031032,120]
[420741813,1776521966648,-100000.0,0.0003198,120]
[420741814,1776521966679,-976.69,0.00032,120]
[420741815,1776521966712,-500.0,0.00032002,120]
[420741816,1776521966743,-150.0,0.00032034,120]
[420741817,1776521966774,-1003.78,0.000325,120]
[420741818,1776521966803,-506.76893701,0.00032849,120]
[420741819,1776521966879,7601.0,0.00032876,120]
[420741820,1776521966913,11023.8604982,0.00032876,120]
[420741821,1776521967097,57045.66576834,0.00032876,120]
[420741822,1776521967274,2163.8840337,0.0002909,120]
[420741823,1776521967732,1522.0,0.00032876,120]
[420741824,1776521967961,5188.0,0.00032876,120]
[420741825,1776521980314,1004.0,0.00032876,120]
[420741826,1776521981562,150.0,0.00026732,120]
[420741827,1776521981909,150.0,0.00028363,120]
[420741828,1776522013278,500.0,0.00032849,120]
[420741829,1776522013542,500.0,0.00032849,120]
[420741830,1776522013818,500.0,0.00032849,120]
[420741831,1776522014099,500.0,0.00032849,120]
[420741832,1776522014379,500.0,0.00032849,120]
[420741833,1776522014653,500.0,0.00032849,120]
[420741834,1776522015430,500.0,0.00032849,120]
[420741835,1776522016054,500.0,0.00032849,120]
[420741842,1776522016347,524.189,0.00032849,120]
[420742609,1776522061617,150.0,0.00026977,120]
[420742717,1776522168140,150.0,0.00032877,120]
[420742752,1776522190349,500.0,0.00029259,120]
[420742753,1776522190966,186.96,0.00029799,120]
[420742754,1776522199057,500.0,0.00025335,120]
[420742755,1776522199725,500.0,0.00026404,120]
[420742756,1776522200192,500.0,0.00027473,120]
[420742757,1776522200557,500.0,0.00028542,120]
[420742758,1776522200909,500.0,0.00029611,120]
[420742759,1776522201275,500.0,0.0003068,120]
[420742760,1776522201661,500.0,0.0003175,120]
[420742761,1776522202018,500.0,0.00032819,120]
[420742797,1776522241383,7391.5478624,0.00032877,120]
[420742817,1776522247862,599.80925833,0.00032876,120]
[420742837,1776522260558,500.0,0.0003287,120]
[420742883,1776522297151,575.08,0.00032877,120]
[420742899,1776522350267,1111.19127539,0.00032877,120]
[420742900,1776522351972,1003.78,0.00032812,120]
[420742901,1776522353346,150.0,0.00032877,120]
[420742904,1776522374020,500.0,0.00029259,120]
[420742905,1776522374257,500.0,0.00029799,120]
[420742906,1776522374507,527.2,0.00029799,120]
[420742907,1776522411402,586.0,0.0003287,120]
[420742911,1776522466555,10000.0,0.00032877,120]
[420742912,1776522570153,220.0,0.00032877,120]
[420742913,1776522588487,500.0,0.0003287,120]
[420742914,1776522589806,220.0,0.00032877,120]
[420742915,1776522605225,150.0,0.00032876,120]
[420742916,1776522618861,220.0,0.00032877,120]
[420742924,1776522631766,-150.0,8.381e-05,2]
[420742925,1776522631777,-689.1352,8.586e-05,2]
[420742926,1776522631786,-383.7887,8.586e-05,2]
[420742927,1776522631796,-500.0,8.663e-05,2]
[420742928,1776522631806,-500.0,8.663e-05,2]
[420742929,1776522631816,-160.08522662,8.663e-05,2]
[420742930,1776522631826,-680.71634458,8.676e-05,2]
[420742931,1776522631835,-150.0,8.681e-05,2]
[420742932,1776522631845,-1200.0,8.685e-05,2]
[420742933,1776522631855,-500.0,8.686e-05,2]
[420742934,1776522631865,-161.32,8.981e-05,2]
[420742935,1776522631874,-2000.0,9.047e-05,2]
[420742936,1776522631884,-1500.0,9.107e-05,2]
[420742937,1776522631894,-162.96,9.208e-05,2]
[420742938,1776522631904,-5000.0,9.219e-05,2]
[420742939,1776522631914,-164.97,9.591e-05,2]
[420742940,1776522631925,-260.0,9.863e-05,2]
[420742941,1776522631935,-260.0,9.864e-05,2]
[420742942,1776522631945,-260.0,9.864e-05,2]
[420742943,1776522631954,-260.0,9.865e-05,2]
[420742944,1776522631964,-260.0,9.866e-05,2]